[Event "Titled Tuesday Blitz November 14 Early 2023"]
[White "Jamal-Jamal-Jamal"]
[Black "Karamsetty, Jeevan"]
[BlackFideId "2025337"]
[WhiteElo "2421"]
[BlackElo "2614"]
[Result "1/2-1/2"]
[Round "6"]
[TimeControl "180+1"]
[Date "2023.11.14"]
[WhiteClock "0:00:04"]
[BlackClock "0:00:11"]
[Board "89"]

1. e4 {[%clk 0:03:00]}  d6 {[%clk 0:03:00]} 2. d4 {[%clk 0:03:00]}  Nf6 {[%clk 0:03:00]} 3. Nc3 {[%clk 0:03:00]}  e5 {[%clk 0:03:01]} 4. Nge2 {[%clk 0:03:00]}  Nbd7 {[%clk 0:03:00]} 5. a4 {[%clk 0:03:00]}  Be7 {[%clk 0:02:59]} 6. h3 {[%clk 0:03:00]}  O-O {[%clk 0:02:59]} 7. g4 {[%clk 0:03:00]}  exd4 {[%clk 0:02:58]} 8. Nxd4 {[%clk 0:03:00]}  Nc5 {[%clk 0:02:59]} 9. Bg2 {[%clk 0:03:00]}  Ne8 {[%clk 0:02:53]} 10. Be3 {[%clk 0:03:00]}  c6 {[%clk 0:02:49]} 11. Qd2 {[%clk 0:03:00]}  Qa5 {[%clk 0:02:37]} 12. O-O {[%clk 0:02:49]}  Qc7 {[%clk 0:02:30]} 13. a5 {[%clk 0:02:46]}  Bf6 {[%clk 0:02:23]} 14. f4 {[%clk 0:02:45]}  Ne6 {[%clk 0:02:06]} 15. Nce2 {[%clk 0:02:40]}  Nxd4 {[%clk 0:02:04]} 16. Nxd4 {[%clk 0:02:38]}  c5 {[%clk 0:01:56]} 17. Nb5 {[%clk 0:02:35]}  Qd7 {[%clk 0:01:48]} 18. Nc3 {[%clk 0:02:33]}  Nc7 {[%clk 0:01:47]} 19. g5 {[%clk 0:02:15]}  Be7 {[%clk 0:01:37]} 20. Rad1 {[%clk 0:02:09]}  Qe8 {[%clk 0:01:30]} 21. f5 {[%clk 0:02:06]}  f6 {[%clk 0:01:29]} 22. Nd5 {[%clk 0:02:01]}  Nxd5 {[%clk 0:01:26]} 23. Qxd5+ {[%clk 0:02:01]}  Kh8 {[%clk 0:01:27]} 24. Rfe1 {[%clk 0:01:40]}  Bd7 {[%clk 0:01:19]} 25. Bc1 {[%clk 0:01:39]}  Bc6 {[%clk 0:01:16]} 26. Qc4 {[%clk 0:01:39]}  fxg5 {[%clk 0:01:14]} 27. b4 {[%clk 0:01:32]}  cxb4 {[%clk 0:01:10]} 28. Bb2 {[%clk 0:01:32]}  Bf6 {[%clk 0:01:09]} 29. Qxb4 {[%clk 0:01:30]}  Qh5 {[%clk 0:00:58]} 30. Bxf6 {[%clk 0:01:24]}  Rxf6 {[%clk 0:00:59]} 31. Rxd6 {[%clk 0:01:22]}  Rff8 {[%clk 0:00:48]} 32. a6 {[%clk 0:01:17]}  Rab8 {[%clk 0:00:46]} 33. axb7 {[%clk 0:01:08]}  Bxb7 {[%clk 0:00:44]} 34. Qd4 {[%clk 0:01:02]}  Qh4 {[%clk 0:00:38]} 35. Re2 {[%clk 0:00:56]}  Qf4 {[%clk 0:00:23]} 36. Rd7 {[%clk 0:00:52]}  Rg8 {[%clk 0:00:20]} 37. Qxa7 {[%clk 0:00:46]}  Qc1+ {[%clk 0:00:18]} 38. Kh2 {[%clk 0:00:42]}  Qf4+ {[%clk 0:00:18]} 39. Kg1 {[%clk 0:00:42]}  Ba6 {[%clk 0:00:15]} 40. Re1 {[%clk 0:00:27]}  Bb5 {[%clk 0:00:15]} 41. Rdd1 {[%clk 0:00:17]}  g4 {[%clk 0:00:15]} 42. Qf2 {[%clk 0:00:17]}  Qg5 {[%clk 0:00:07]} 43. hxg4 {[%clk 0:00:17]}  Qxg4 {[%clk 0:00:07]} 44. Qf3 {[%clk 0:00:17]}  Qg5 {[%clk 0:00:07]} 45. Qe3 {[%clk 0:00:17]}  Qh5 {[%clk 0:00:06]} 46. Rd2 {[%clk 0:00:17]}  Rbe8 {[%clk 0:00:06]} 47. Qf3 {[%clk 0:00:17]}  Qh4 {[%clk 0:00:05]} 48. Qf2 {[%clk 0:00:16]}  Qf6 {[%clk 0:00:05]} 49. Qf4 {[%clk 0:00:15]}  Re5 {[%clk 0:00:05]} 50. Rd5 {[%clk 0:00:13]}  Rge8 {[%clk 0:00:04]} 51. Rxe5 {[%clk 0:00:14]}  Rxe5 {[%clk 0:00:05]} 52. Bf3 {[%clk 0:00:13]}  h6 {[%clk 0:00:05]} 53. Kf2 {[%clk 0:00:13]}  Bd7 {[%clk 0:00:05]} 54. Qd2 {[%clk 0:00:13]}  Qb6+ {[%clk 0:00:04]} 55. Qe3 {[%clk 0:00:13]}  Qc7 {[%clk 0:00:04]} 56. Qd3 {[%clk 0:00:13]}  Bb5 {[%clk 0:00:04]} 57. Qd2 {[%clk 0:00:13]}  Qc5+ {[%clk 0:00:04]} 58. Kg3 {[%clk 0:00:11]}  Qe7 {[%clk 0:00:05]} 59. Rh1 {[%clk 0:00:10]}  Qc7 {[%clk 0:00:04]} 60. Qf4 {[%clk 0:00:10]}  Qe7 {[%clk 0:00:04]} 61. f6 {[%clk 0:00:10]}  Qxf6 {[%clk 0:00:03]} 62. Qxf6 {[%clk 0:00:10]}  gxf6 {[%clk 0:00:04]} 63. Rxh6+ {[%clk 0:00:10]}  Kg7 {[%clk 0:00:05]} 64. Rh2 {[%clk 0:00:10]}  Bc6 {[%clk 0:00:04]} 65. Kf4 {[%clk 0:00:10]}  Rc5 {[%clk 0:00:05]} 66. Rd2 {[%clk 0:00:10]}  Kf7 {[%clk 0:00:05]} 67. Bg4 {[%clk 0:00:10]}  Ke7 {[%clk 0:00:05]} 68. Bf3 {[%clk 0:00:10]}  Ke6 {[%clk 0:00:05]} 69. Ke3 {[%clk 0:00:10]}  Ke5 {[%clk 0:00:05]} 70. Kd3 {[%clk 0:00:06]}  Bb5+ {[%clk 0:00:04]} 71. Ke3 {[%clk 0:00:06]}  Rc3+ {[%clk 0:00:04]} 72. Kf2 {[%clk 0:00:06]}  Bc6 {[%clk 0:00:04]} 73. Bg2 {[%clk 0:00:04]}  Kf4 {[%clk 0:00:04]} 74. Bh1 {[%clk 0:00:02]}  Bxe4 {[%clk 0:00:04]} 75. Bxe4 {[%clk 0:00:02]}  Kxe4 {[%clk 0:00:04]} 76. Ke2 {[%clk 0:00:03]}  f5 {[%clk 0:00:05]} 77. Kf2 {[%clk 0:00:03]}  f4 {[%clk 0:00:05]} 78. Rd8 {[%clk 0:00:03]}  Rxc2+ {[%clk 0:00:05]} 79. Kf1 {[%clk 0:00:04]}  Kf3 {[%clk 0:00:06]} 80. Rd3+ {[%clk 0:00:04]}  Kg4 {[%clk 0:00:06]} 81. Ra3 {[%clk 0:00:04]}  f3 {[%clk 0:00:05]} 82. Ra8 {[%clk 0:00:04]}  Rc1+ {[%clk 0:00:05]} 83. Kf2 {[%clk 0:00:04]}  Rc2+ {[%clk 0:00:06]} 84. Kf1 {[%clk 0:00:04]}  Kf4 {[%clk 0:00:07]} 85. Ke1 {[%clk 0:00:03]}  Ke3 {[%clk 0:00:06]} 86. Re8+ {[%clk 0:00:03]}  Kd3 {[%clk 0:00:07]} 87. Rd8+ {[%clk 0:00:03]}  Ke4 {[%clk 0:00:07]} 88. Re8+ {[%clk 0:00:03]}  Kd4 {[%clk 0:00:08]} 89. Rd8+ {[%clk 0:00:04]}  Ke3 {[%clk 0:00:09]} 90. Re8+ {[%clk 0:00:04]}  Kf4 {[%clk 0:00:09]} 91. Rf8+ {[%clk 0:00:05]}  Kg5 {[%clk 0:00:10]} 92. Rg8+ {[%clk 0:00:05]}  Kh4 {[%clk 0:00:11]} 93. Kf1 {[%clk 0:00:04]}  Re2 {[%clk 0:00:09]} 94. Rg7 {[%clk 0:00:04]}  Kh5 {[%clk 0:00:09]} 95. Rg8 {[%clk 0:00:04]}  Kh6 {[%clk 0:00:09]} 96. Rg3 {[%clk 0:00:04]}  Re3 {[%clk 0:00:09]} 97. Kf2 {[%clk 0:00:04]}  Ra3 {[%clk 0:00:10]} 98. Rxf3 {[%clk 0:00:04]}  Rxf3+ {[%clk 0:00:11]} 99. Kxf3 {[%clk 0:00:04]} 1/2-1/2


[Site "https://www.chess.com"]

[Event "Titled Tuesday Blitz November 14 Early 2023"]
[White "Goldin, Roman"]
[Black "Souleidis, Georgios"]
[WhiteFideId "2803860"]
[BlackFideId "4206827"]
[WhiteElo "2420"]
[BlackElo "2609"]
[Result "0-1"]
[Round "6"]
[TimeControl "180+1"]
[Date "2023.11.14"]
[WhiteClock "0:00:00"]
[BlackClock "0:00:13"]
[Board "90"]

1. e4 {[%clk 0:02:59]}  c5 {[%clk 0:02:53]} 2. Nf3 {[%clk 0:02:58]}  e6 {[%clk 0:02:52]} 3. c3 {[%clk 0:02:58]}  d5 {[%clk 0:02:52]} 4. exd5 {[%clk 0:02:58]}  exd5 {[%clk 0:02:53]} 5. Bb5+ {[%clk 0:02:51]}  Nc6 {[%clk 0:02:53]} 6. O-O {[%clk 0:02:51]}  Bd6 {[%clk 0:02:53]} 7. Re1+ {[%clk 0:02:46]}  Ne7 {[%clk 0:02:53]} 8. d3 {[%clk 0:02:44]}  O-O {[%clk 0:02:53]} 9. Bg5 {[%clk 0:02:43]}  Qc7 {[%clk 0:02:49]} 10. Nbd2 {[%clk 0:02:35]}  Bg4 {[%clk 0:02:47]} 11. Qa4 {[%clk 0:01:46]}  Bh5 {[%clk 0:02:11]} 12. Bxc6 {[%clk 0:01:31]}  Nxc6 {[%clk 0:02:05]} 13. Qh4 {[%clk 0:01:26]}  Bg6 {[%clk 0:02:05]} 14. d4 {[%clk 0:00:46]}  cxd4 {[%clk 0:02:05]} 15. Nxd4 {[%clk 0:00:37]}  Nxd4 {[%clk 0:02:05]} 16. Qxd4 {[%clk 0:00:21]}  Bxh2+ {[%clk 0:01:59]} 17. Kh1 {[%clk 0:00:21]}  h6 {[%clk 0:01:44]} 18. Nf3 {[%clk 0:00:08]}  Bd6 {[%clk 0:01:40]} 19. Bh4 {[%clk 0:00:06]}  Qc4 {[%clk 0:01:25]} 20. Qxc4 {[%clk 0:00:04]}  dxc4 {[%clk 0:01:26]} 21. Rad1 {[%clk 0:00:03]}  Bd3 {[%clk 0:01:11]} 22. Be7 {[%clk 0:00:03]}  Bxe7 {[%clk 0:01:08]} 23. Rxe7 {[%clk 0:00:03]}  b5 {[%clk 0:00:44]} 24. Ne5 {[%clk 0:00:03]}  Bf5 {[%clk 0:00:38]} 25. Rb7 {[%clk 0:00:03]}  a6 {[%clk 0:00:26]} 26. Rd6 {[%clk 0:00:01]}  Be6 {[%clk 0:00:21]} 27. f3 {[%clk 0:00:01]}  Rfd8 {[%clk 0:00:19]} 28. Rxd8+ {[%clk 0:00:01]}  Rxd8 {[%clk 0:00:19]} 29. Rb6 {[%clk 0:00:00]}  Rd5 {[%clk 0:00:13]} 0-1


[Site "https://www.chess.com"]

[Event "Titled Tuesday Blitz November 14 Early 2023"]
[White "Ahmad, Khagan"]
[Black "Lacasa Diaz, Jose Antonio"]
[WhiteFideId "13431552"]
[BlackFideId "2203375"]
[WhiteElo "2605"]
[BlackElo "2358"]
[Result "1-0"]
[Round "6"]
[TimeControl "180+1"]
[Date "2023.11.14"]
[WhiteClock "0:00:05"]
[BlackClock "0:00:08"]
[Board "91"]

1. e4 {[%clk 0:03:00]}  c5 {[%clk 0:02:58]} 2. Nf3 {[%clk 0:02:59]}  d6 {[%clk 0:02:58]} 3. d4 {[%clk 0:02:59]}  cxd4 {[%clk 0:02:59]} 4. Nxd4 {[%clk 0:03:00]}  Nf6 {[%clk 0:02:59]} 5. Nc3 {[%clk 0:03:00]}  e6 {[%clk 0:02:56]} 6. g4 {[%clk 0:02:53]}  e5 {[%clk 0:02:55]} 7. Nf5 {[%clk 0:02:53]}  h5 {[%clk 0:02:55]} 8. Bg5 {[%clk 0:02:39]}  hxg4 {[%clk 0:02:49]} 9. Bxf6 {[%clk 0:02:37]}  Qxf6 {[%clk 0:02:48]} 10. Nb5 {[%clk 0:02:31]}  Bxf5 {[%clk 0:02:44]} 11. Nc7+ {[%clk 0:02:31]}  Kd8 {[%clk 0:02:36]} 12. Nd5 {[%clk 0:02:28]}  Qg5 {[%clk 0:02:24]} 13. exf5 {[%clk 0:02:28]}  Qxf5 {[%clk 0:02:18]} 14. Bg2 {[%clk 0:02:14]}  Nc6 {[%clk 0:02:13]} 15. c3 {[%clk 0:02:09]}  Be7 {[%clk 0:02:02]} 16. Qb3 {[%clk 0:01:56]}  Bh4 {[%clk 0:01:29]} 17. O-O {[%clk 0:01:35]}  Kc8 {[%clk 0:01:16]} 18. Qa3 {[%clk 0:01:24]}  Rh6 {[%clk 0:01:08]} 19. Nb6+ {[%clk 0:01:13]}  axb6 {[%clk 0:01:05]} 20. Qxa8+ {[%clk 0:01:13]}  Kc7 {[%clk 0:01:06]} 21. a4 {[%clk 0:00:54]}  Qf4 {[%clk 0:00:56]} 22. a5 {[%clk 0:00:36]}  bxa5 {[%clk 0:00:52]} 23. Bxc6 {[%clk 0:00:27]}  Kxc6 {[%clk 0:00:43]} 24. Ra4 {[%clk 0:00:13]}  e4 {[%clk 0:00:19]} 25. Qe8+ {[%clk 0:00:09]}  Kb6 {[%clk 0:00:18]} 26. Qxe4 {[%clk 0:00:07]}  Qxe4 {[%clk 0:00:14]} 27. Rxe4 {[%clk 0:00:08]}  Bf6 {[%clk 0:00:14]} 28. Rxg4 {[%clk 0:00:08]}  Be5 {[%clk 0:00:14]} 29. f4 {[%clk 0:00:08]}  Bf6 {[%clk 0:00:14]} 30. Re1 {[%clk 0:00:09]}  Kc6 {[%clk 0:00:14]} 31. Re8 {[%clk 0:00:08]}  Kd7 {[%clk 0:00:14]} 32. Ra8 {[%clk 0:00:08]}  b6 {[%clk 0:00:14]} 33. Ra7+ {[%clk 0:00:05]}  Ke6 {[%clk 0:00:14]} 34. Rg2 {[%clk 0:00:05]}  Rh4 {[%clk 0:00:12]} 35. Re2+ {[%clk 0:00:03]}  Kf5 {[%clk 0:00:12]} 36. Rxf7 {[%clk 0:00:04]}  Rxf4 {[%clk 0:00:12]} 37. Rf2 {[%clk 0:00:05]}  Rxf2 {[%clk 0:00:11]} 38. Kxf2 {[%clk 0:00:06]}  Ke4 {[%clk 0:00:11]} 39. Rb7 {[%clk 0:00:06]}  Bh4+ {[%clk 0:00:10]} 40. Ke2 {[%clk 0:00:06]}  Bg5 {[%clk 0:00:09]} 41. Rxb6 {[%clk 0:00:05]}  Bf4 {[%clk 0:00:10]} 42. h3 {[%clk 0:00:05]}  a4 {[%clk 0:00:10]} 43. Rb4+ {[%clk 0:00:05]}  Ke5 {[%clk 0:00:08]} 44. Rxa4 {[%clk 0:00:05]} 1-0


[Site "https://www.chess.com"]

[Event "Titled Tuesday Blitz November 14 Early 2023"]
[White "Aaditya Dhingra"]
[Black "Kraus, Tomas"]
[WhiteFideId "25678191"]
[BlackFideId "331708"]
[WhiteElo "2604"]
[BlackElo "2345"]
[Result "1-0"]
[Round "6"]
[TimeControl "180+1"]
[Date "2023.11.14"]
[WhiteClock "0:01:44"]
[BlackClock "0:01:58"]
[Board "92"]

1. e4 {[%clk 0:03:00]}  e6 {[%clk 0:03:00]} 2. d3 {[%clk 0:02:59]}  d5 {[%clk 0:03:01]} 3. Nd2 {[%clk 0:03:00]}  Nf6 {[%clk 0:03:01]} 4. Ngf3 {[%clk 0:03:01]}  Be7 {[%clk 0:03:02]} 5. g3 {[%clk 0:03:01]}  c5 {[%clk 0:03:02]} 6. Bg2 {[%clk 0:03:01]}  Nc6 {[%clk 0:03:03]} 7. O-O {[%clk 0:03:02]}  O-O {[%clk 0:03:03]} 8. e5 {[%clk 0:03:00]}  Nd7 {[%clk 0:03:04]} 9. Re1 {[%clk 0:03:00]}  b5 {[%clk 0:03:04]} 10. Nf1 {[%clk 0:02:59]}  Qc7 {[%clk 0:03:05]} 11. Bf4 {[%clk 0:02:58]}  Bb7 {[%clk 0:03:05]} 12. h4 {[%clk 0:02:58]}  Rfc8 {[%clk 0:03:06]} 13. N1h2 {[%clk 0:02:58]}  Qd8 {[%clk 0:03:06]} 14. h5 {[%clk 0:02:58]}  h6 {[%clk 0:03:06]} 15. Ng4 {[%clk 0:02:59]}  Bf8 {[%clk 0:03:05]} 16. Qd2 {[%clk 0:02:58]}  a5 {[%clk 0:03:01]} 17. Nfh2 {[%clk 0:02:49]}  Kh7 {[%clk 0:02:55]} 18. c4 {[%clk 0:02:38]}  bxc4 {[%clk 0:02:44]} 19. dxc4 {[%clk 0:02:38]}  Nd4 {[%clk 0:02:44]} 20. cxd5 {[%clk 0:02:36]}  Bxd5 {[%clk 0:02:43]} 21. Bxd5 {[%clk 0:02:17]}  exd5 {[%clk 0:02:44]} 22. Be3 {[%clk 0:02:17]}  f5 {[%clk 0:02:29]} 23. exf6 {[%clk 0:02:10]}  Nxf6 {[%clk 0:02:29]} 24. Bxd4 {[%clk 0:02:07]}  cxd4 {[%clk 0:02:24]} 25. Qxd4 {[%clk 0:01:55]}  Rc4 {[%clk 0:02:19]} 26. Qd3+ {[%clk 0:01:47]}  Kg8 {[%clk 0:02:17]} 27. Nxf6+ {[%clk 0:01:45]}  Qxf6 {[%clk 0:01:58]} 28. Qxd5+ {[%clk 0:01:44]} 1-0


[Site "https://www.chess.com"]

[Event "Titled Tuesday Blitz November 14 Early 2023"]
[White "borocotoajua"]
[Black "Ruge, Edison"]
[BlackFideId "4401000"]
[WhiteElo "2601"]
[BlackElo "2335"]
[Result "1-0"]
[Round "6"]
[TimeControl "180+1"]
[Date "2023.11.14"]
[WhiteClock "0:01:10"]
[BlackClock "0:00:07"]
[Board "93"]

1. d4 {[%clk 0:02:57]}  d5 {[%clk 0:02:58]} 2. Nf3 {[%clk 0:02:58]}  e6 {[%clk 0:02:58]} 3. c4 {[%clk 0:02:58]}  c6 {[%clk 0:02:58]} 4. g3 {[%clk 0:02:57]}  f5 {[%clk 0:02:58]} 5. Bg2 {[%clk 0:02:56]}  Nf6 {[%clk 0:02:59]} 6. O-O {[%clk 0:02:56]}  Be7 {[%clk 0:03:00]} 7. b3 {[%clk 0:02:53]}  O-O {[%clk 0:03:00]} 8. Bb2 {[%clk 0:02:54]}  Bd7 {[%clk 0:03:01]} 9. Nbd2 {[%clk 0:02:53]}  Be8 {[%clk 0:03:01]} 10. Qc2 {[%clk 0:02:51]}  Bh5 {[%clk 0:03:01]} 11. Ng5 {[%clk 0:02:39]}  Qd7 {[%clk 0:02:54]} 12. Ndf3 {[%clk 0:02:40]}  Ne4 {[%clk 0:02:45]} 13. Ne5 {[%clk 0:02:33]}  Qc8 {[%clk 0:02:45]} 14. Nxe4 {[%clk 0:02:29]}  fxe4 {[%clk 0:02:43]} 15. Bh3 {[%clk 0:02:22]}  Bf7 {[%clk 0:02:03]} 16. f3 {[%clk 0:02:15]}  exf3 {[%clk 0:01:29]} 17. Rxf3 {[%clk 0:02:16]}  Bf6 {[%clk 0:01:26]} 18. Nxf7 {[%clk 0:02:02]}  Kxf7 {[%clk 0:01:24]} 19. Qxh7 {[%clk 0:01:53]}  Ke8 {[%clk 0:00:27]} 20. Raf1 {[%clk 0:01:40]}  Qd7 {[%clk 0:00:26]} 21. Ba3 {[%clk 0:01:20]}  Bxd4+ {[%clk 0:00:19]} 22. e3 {[%clk 0:01:20]}  Rxf3 {[%clk 0:00:19]} 23. Rxf3 {[%clk 0:01:21]}  Kd8 {[%clk 0:00:10]} 24. exd4 {[%clk 0:01:12]}  dxc4 {[%clk 0:00:11]} 25. Qg8+ {[%clk 0:01:10]}  Kc7 {[%clk 0:00:11]} 26. Rf7 {[%clk 0:01:11]}  Na6 {[%clk 0:00:07]} 27. Rxd7+ {[%clk 0:01:10]} 1-0


[Site "https://www.chess.com"]

[Event "Titled Tuesday Blitz November 14 Early 2023"]
[White "DavitSantryan02"]
[Black "Skatchkov, Valery"]
[BlackFideId "24195812"]
[WhiteElo "1904"]
[BlackElo "2599"]
[Result "1-0"]
[Round "6"]
[TimeControl "180+1"]
[Date "2023.11.14"]
[WhiteClock "0:00:29"]
[BlackClock "0:00:00"]
[Board "94"]

1. d4 {[%clk 0:03:00]}  Nf6 {[%clk 0:02:50]} 2. e3 {[%clk 0:03:01]}  d5 {[%clk 0:02:50]} 3. Bd3 {[%clk 0:03:01]}  Bg4 {[%clk 0:02:50]} 4. Ne2 {[%clk 0:02:59]}  Nbd7 {[%clk 0:02:51]} 5. h3 {[%clk 0:02:59]}  Bh5 {[%clk 0:02:46]} 6. b3 {[%clk 0:02:59]}  e5 {[%clk 0:02:45]} 7. dxe5 {[%clk 0:02:58]}  Nxe5 {[%clk 0:02:46]} 8. Bb2 {[%clk 0:02:55]}  Bd6 {[%clk 0:02:46]} 9. g4 {[%clk 0:02:51]}  Nf3+ {[%clk 0:02:26]} 10. Kf1 {[%clk 0:02:51]}  Bg6 {[%clk 0:02:26]} 11. Bxg6 {[%clk 0:02:50]}  hxg6 {[%clk 0:02:25]} 12. Nec3 {[%clk 0:02:43]}  Ne5 {[%clk 0:02:03]} 13. Nxd5 {[%clk 0:02:40]}  Nfxg4 {[%clk 0:02:03]} 14. Nd2 {[%clk 0:02:12]}  Qh4 {[%clk 0:02:02]} 15. Qe2 {[%clk 0:02:07]}  O-O-O {[%clk 0:01:50]} 16. Kg2 {[%clk 0:01:56]}  Nf6 {[%clk 0:01:34]} 17. Nxf6 {[%clk 0:01:56]}  gxf6 {[%clk 0:01:35]} 18. f4 {[%clk 0:01:56]}  Nc6 {[%clk 0:01:31]} 19. Qg4+ {[%clk 0:01:55]}  Qxg4+ {[%clk 0:01:31]} 20. hxg4 {[%clk 0:01:56]}  Rhe8 {[%clk 0:01:24]} 21. Bxf6 {[%clk 0:01:52]}  Be7 {[%clk 0:01:24]} 22. Bc3 {[%clk 0:01:38]}  Bb4 {[%clk 0:01:08]} 23. Bxb4 {[%clk 0:01:38]}  Nxb4 {[%clk 0:01:09]} 24. Nc4 {[%clk 0:01:39]}  Nxc2 {[%clk 0:01:04]} 25. Rac1 {[%clk 0:01:39]}  Nxe3+ {[%clk 0:01:05]} 26. Kf3 {[%clk 0:01:36]}  Nxc4 {[%clk 0:00:58]} 27. Rxc4 {[%clk 0:01:37]}  Rd3+ {[%clk 0:00:59]} 28. Kf2 {[%clk 0:01:38]}  Rd2+ {[%clk 0:00:59]} 29. Kf3 {[%clk 0:01:38]}  Rxa2 {[%clk 0:00:48]} 30. Rh7 {[%clk 0:01:38]}  Re7 {[%clk 0:00:48]} 31. f5 {[%clk 0:01:28]}  gxf5 {[%clk 0:00:44]} 32. gxf5 {[%clk 0:01:28]}  b6 {[%clk 0:00:20]} 33. Rd4 {[%clk 0:01:20]}  Ra5 {[%clk 0:00:19]} 34. Kf4 {[%clk 0:01:18]}  Rb5 {[%clk 0:00:18]} 35. b4 {[%clk 0:01:18]}  c6 {[%clk 0:00:11]} 36. f6 {[%clk 0:01:16]}  Rc7 {[%clk 0:00:12]} 37. Re4 {[%clk 0:01:06]}  Rd7 {[%clk 0:00:12]} 38. Rh8+ {[%clk 0:00:55]}  Kc7 {[%clk 0:00:13]} 39. Rf8 {[%clk 0:00:53]}  Rbd5 {[%clk 0:00:13]} 40. Re7 {[%clk 0:00:51]}  Rd4+ {[%clk 0:00:10]} 41. Kg5 {[%clk 0:00:48]}  Kd6 {[%clk 0:00:09]} 42. Rxd7+ {[%clk 0:00:41]}  Kxd7 {[%clk 0:00:09]} 43. Rxf7+ {[%clk 0:00:42]}  Ke6 {[%clk 0:00:09]} 44. Re7+ {[%clk 0:00:42]}  Kd6 {[%clk 0:00:09]} 45. Rxa7 {[%clk 0:00:40]}  Rd1 {[%clk 0:00:03]} 46. f7 {[%clk 0:00:33]}  Rf1 {[%clk 0:00:03]} 47. Kg6 {[%clk 0:00:33]}  Ke6 {[%clk 0:00:00]} 48. Rc7 {[%clk 0:00:29]} 1-0


[Site "https://www.chess.com"]

[Event "Titled Tuesday Blitz November 14 Early 2023"]
[White "BardArtem"]
[Black "Kochiev, Ivan"]
[BlackFideId "2917890"]
[WhiteElo "2822"]
[BlackElo "2540"]
[Result "1-0"]
[Round "6"]
[TimeControl "180+1"]
[Date "2023.11.14"]
[WhiteClock "0:00:17"]
[BlackClock "0:00:03"]
[Board "95"]

1. e4 {[%clk 0:03:00]}  e5 {[%clk 0:02:59]} 2. d4 {[%clk 0:03:00]}  exd4 {[%clk 0:02:59]} 3. Qxd4 {[%clk 0:03:01]}  Nc6 {[%clk 0:02:59]} 4. Qd3 {[%clk 0:03:01]}  Nf6 {[%clk 0:02:58]} 5. Nc3 {[%clk 0:03:02]}  h6 {[%clk 0:02:55]} 6. Nf3 {[%clk 0:02:56]}  Bc5 {[%clk 0:02:35]} 7. Be3 {[%clk 0:02:48]}  Nb4 {[%clk 0:02:30]} 8. Qd2 {[%clk 0:02:39]}  Bxe3 {[%clk 0:02:29]} 9. fxe3 {[%clk 0:02:40]}  O-O {[%clk 0:02:13]} 10. O-O-O {[%clk 0:02:33]}  Re8 {[%clk 0:02:09]} 11. e5 {[%clk 0:02:29]}  Nh7 {[%clk 0:02:01]} 12. Bc4 {[%clk 0:02:23]}  Nc6 {[%clk 0:01:54]} 13. Rhf1 {[%clk 0:02:20]}  Rf8 {[%clk 0:01:37]} 14. Kb1 {[%clk 0:02:09]}  Ng5 {[%clk 0:01:31]} 15. e4 {[%clk 0:01:56]}  Nxf3 {[%clk 0:01:24]} 16. gxf3 {[%clk 0:01:57]}  Nxe5 {[%clk 0:01:25]} 17. Bb3 {[%clk 0:01:56]}  d6 {[%clk 0:01:19]} 18. f4 {[%clk 0:01:54]}  Nc6 {[%clk 0:01:19]} 19. Rg1 {[%clk 0:01:54]}  Kh8 {[%clk 0:00:40]} 20. Rg3 {[%clk 0:01:47]}  Be6 {[%clk 0:00:34]} 21. Rdg1 {[%clk 0:01:44]}  Rg8 {[%clk 0:00:29]} 22. Bxe6 {[%clk 0:01:35]}  fxe6 {[%clk 0:00:30]} 23. Rg6 {[%clk 0:01:31]}  Qd7 {[%clk 0:00:17]} 24. Ne2 {[%clk 0:01:09]}  Raf8 {[%clk 0:00:15]} 25. a3 {[%clk 0:00:59]}  Ne7 {[%clk 0:00:14]} 26. R6g2 {[%clk 0:00:54]}  d5 {[%clk 0:00:14]} 27. f5 {[%clk 0:00:46]}  e5 {[%clk 0:00:07]} 28. Rxg7 {[%clk 0:00:43]}  Qd6 {[%clk 0:00:04]} 29. R1g6 {[%clk 0:00:19]}  Qxg6 {[%clk 0:00:03]} 30. Rxg6 {[%clk 0:00:17]}  Nxg6 {[%clk 0:00:03]} 31. Qxh6# {[%clk 0:00:17]} 1-0


[Site "https://www.chess.com"]